bitfinex/quotes_ETHUSD_20220308
["timestamp","ask_amount","ask_price","bid_price","bid_amount"]
[1646770726031,0.00309558,2579.5,2579.3,17.1558]
[1646770726437,0.00309558,2579.5,2579.3,13.6558]
[1646770726636,0.00309558,2579.5,2579.3,1.8558]
[1646770726836,0.00309558,2579.5,2579.3,0.8558]
[1646770727038,0.00642462,2579.5,2579.3,0.8558]
[1646770727235,0.00332904,2579.5,2579.3,0.8558]
[1646770728041,0.00186973,2579.5,2579.3,0.8558]
[1646770728337,0.00336618,2579.5,2579.3,0.8558]
[1646770729138,0.00336618,2579.5,2579.3,0.468]
[1646770729342,0.00336618,2579.5,2579.3,12.268]
[1646770729538,0.01895255,2579.6,2579.3,1.468]
[1646770729780,0.01895255,2579.6,2579.3,0.468]
[1646770730584,0.01895255,2579.6,2579.3,12.268]
[1646770730785,0.00167618,2579.6,2579.5,12.1878]
[1646770730983,0.00167618,2579.6,2579.5,16.6558]
[1646770731486,0.14013165,2579.9,2579.7,12.76911]
[1646770731685,15.0,2580.0,2579.8,0.468]
[1646770732086,0.14007242,2579.9,2579.8,0.468]
[1646770732286,0.14007242,2579.9,2579.7,0.96911]
[1646770733574,0.14007242,2579.9,2579.7,4.76911]
[1646770733858,0.14007242,2579.9,2579.7,16.34533725]
[1646770734255,15.0,2580.0,2579.7,6.78385195]
[1646770734657,0.001798,2579.9,2579.7,6.78385195]
[1646770734859,0.001798,2579.9,2579.7,18.58385195]
[1646770735057,0.001798,2579.9,2579.7,19.55296195]
[1646770735257,0.001798,2579.9,2579.8,3.8]
[1646770735458,0.001798,2579.9,2579.8,0.768]
[1646770735662,0.003809,2579.9,2579.8,1.768]
[1646770735860,0.003809,2579.9,2579.8,12.568]
[1646770736067,0.003809,2579.9,2579.8,17.4558]
[1646770737071,15.00380896,2580.0,2579.9,12.1878]
[1646770737284,15.00380896,2580.0,2579.9,19.78472518]
[1646770737889,0.94725508,2581.0,2580.3,0.96891]
[1646770737890,0.70437514,2581.0,2580.3,0.96891]
[1646770738091,0.70437514,2581.1,2580.9,3.0]
[1646770738291,7.514e-05,2581.1,2581.0,12.6558]
[1646770738486,0.07928227,2581.3,2581.0,16.1558]
[1646770738686,0.01443597,2581.6,2581.2,12.1878]
[1646770738886,0.01443597,2581.6,2581.4,11.8]
[1646770739089,0.94725508,2582.3,2581.5,13.2364]
[1646770739387,1.39214452,2582.5,2581.5,13.2364]
[1646770739388,0.94725508,2582.5,2581.5,2.7364]
[1646770739586,1.33505508,2582.6,2581.5,2.7364]
[1646770739991,0.94725508,2582.6,2581.6,0.96841]
[1646770740187,0.94725508,2582.6,2581.7,0.3]
[1646770740387,1.33505508,2582.6,2581.1,4.8749006]
[1646770740588,1.33505508,2582.6,2581.2,0.3]
[1646770741238,1.33505508,2582.6,2581.3,0.9687054]
[1646770741440,1.33505508,2582.5,2581.3,0.9687054]
[1646770741641,0.00364497,2582.0,2581.4,0.67717829]
[1646770741839,0.00364497,2582.0,2581.1,2.93747]
[1646770742040,0.00364497,2582.0,2581.1,1.0]
[1646770742238,0.00364497,2582.0,2580.9,4.608]
[1646770742440,1.45044497,2582.0,2580.9,3.608]
[1646770742738,1.23706235,2581.9,2580.8,0.92318283]
[1646770742940,0.0036452,2581.7,2580.8,4.42318283]
[1646770743138,0.0036452,2581.7,2580.8,0.92318283]
[1646770743341,0.0036452,2581.7,2580.8,1.39118283]
[1646770743543,0.0036452,2581.7,2580.8,0.3]
[1646770743739,0.0036452,2581.7,2580.7,0.3]
[1646770744140,0.0036452,2581.7,2580.5,0.9691]
[1646770744141,0.00365367,2581.4,2580.5,0.9691]
[1646770744539,0.91125926,2581.4,2580.4,0.84398248]
[1646770744992,0.00365367,2581.4,2580.4,0.84398248]
[1646770745191,0.00365367,2581.4,2580.5,0.9691]
[1646770745192,0.00190168,2581.1,2580.5,0.9691]
[1646770745593,0.00190168,2581.1,2580.7,14.8]
[1646770745895,0.00190168,2581.1,2580.9,11.8]
[1646770746095,0.00190168,2581.1,2581.0,15.768]
[1646770746296,0.00190168,2581.1,2581.0,16.768]
[1646770746897,0.3878,2582.3,2581.0,17.73666]
[1646770747096,3.65890524,2582.5,2581.3,2.9059547]
[1646770747295,3.65890524,2582.5,2581.3,4.3739547]
[1646770747496,3.65890524,2582.5,2581.3,4.6739547]
[1646770747696,0.00365161,2581.8,2581.3,4.6739547]
[1646770747896,0.00365161,2581.8,2581.3,3.7053031]
[1646770748400,0.00365161,2581.8,2581.3,4.52930511]
[1646770748835,0.00365169,2581.7,2581.4,6.5]
[1646770749035,0.00365169,2581.7,2581.5,13.23647]
[1646770749234,0.00365169,2581.7,2581.6,15.3]
[1646770749436,0.00365169,2581.7,2581.6,12.268]
[1646770749636,0.00365169,2581.7,2581.6,13.568]
[1646770750034,0.00365169,2581.7,2581.6,1.768]
[1646770750234,0.00365169,2581.7,2581.6,0.768]
[1646770750434,0.00364996,2581.8,2581.6,1.73654]
[1646770751340,0.0052679,2581.8,2581.6,1.73654]
[1646770751541,0.00161794,2581.8,2581.6,2.03654]
[1646770752138,0.00161794,2581.8,2581.6,13.83654]
[1646770752386,0.00161794,2581.8,2581.6,3.03654]
[1646770752585,0.00161794,2581.8,2581.6,2.73654]
[1646770752586,0.00334855,2581.8,2581.6,2.73654]
[1646770752785,0.00334855,2581.8,2581.7,0.9685807]
[1646770752986,0.00334855,2581.8,2581.7,1.2685807]
[1646770753188,0.00334855,2581.8,2581.6,0.96854]
[1646770753788,0.00334855,2581.8,2581.6,0.87168601]
[1646770753989,0.02674759,2581.8,2581.6,0.87168601]
[1646770754188,0.02339904,2581.8,2581.6,0.87168601]
[1646770754390,0.02339904,2581.8,2581.7,0.3]
[1646770754999,0.02694097,2581.8,2581.7,0.3]
[1646770756244,0.02339904,2581.8,2581.7,0.3]
[1646770757745,0.02339904,2581.8,2581.4,0.96879]
[1646770758045,0.02339904,2581.8,2581.3,0.97897901]
[1646770758645,0.00336507,2581.7,2581.3,0.97897901]
[1646770758848,0.00336507,2581.7,2581.3,0.154977]
[1646770759784,0.00339461,2581.6,2581.3,0.154977]
[1646770759985,0.00339461,2581.6,2581.3,0.454977]
[1646770760990,0.00680945,2581.6,2581.3,0.154977]
[1646770761191,0.00341484,2581.6,2580.7,2.4859]
[1646770761392,0.39121484,2581.6,2580.4,2.2745]
[1646770761589,0.3878,2581.4,2580.1,3.608]
[1646770762088,0.72610153,2581.1,2580.1,4.57727]
[1646770762294,4.2277317,2581.1,2580.1,4.57727]
[1646770762890,4.2277317,2581.1,2580.1,0.96927]
[1646770763292,4.2277317,2581.1,2580.0,0.5]
[1646770763293,4.9155317,2581.1,2580.0,0.5]
[1646770763555,0.0034034,2580.7,2580.0,0.5]
[1646770763744,0.0034034,2580.7,2579.4,1.93894]
[1646770763745,0.3912034,2580.7,2579.4,1.93894]
[1646770763947,3.96709991,2580.6,2579.4,1.93894]
[1646770764142,1.81280109,2580.3,2579.4,1.93894]
[1646770764343,2.11280109,2580.3,2579.4,1.93894]
[1646770764543,5.61280109,2580.3,2579.4,1.93894]
[1646770764845,0.00179242,2580.2,2579.4,1.93894]
[1646770765443,0.00179242,2580.2,2579.1,0.96966]
[1646770765645,0.96972,2580.1,2579.1,0.96966]
[1646770765843,3.5,2580.0,2579.1,0.96966]
[1646770766249,1.05014908,2579.5,2578.3,1.0]
[1646770766451,1.05014908,2579.5,2578.4,1.52749558]
[1646770766452,0.66234908,2579.5,2578.4,1.52749558]
[1646770766649,1.93999,2579.4,2578.4,1.52749558]
[1646770766949,1.9403,2579.3,2578.4,1.52749558]
[1646770767147,1.9403,2579.3,2578.0,0.9715116]
[1646770767148,3.8878,2579.2,2578.0,0.9715116]
[1646770767388,3.5,2579.2,2578.4,0.01540278]
[1646770768390,0.97015,2579.1,2578.3,0.01919969]
[1646770768588,3.5,2579.0,2578.3,0.01919969]
[1646770769487,0.97022,2578.9,2578.3,0.01919969]
[1646770769687,3.5,2578.8,2577.9,0.0013816]
[1646770769887,3.5,2578.8,2577.9,1.52773755]
[1646770770494,0.3,2579.0,2578.0,0.97012]
[1646770770702,0.10839514,2579.4,2578.1,1.82773755]
[1646770770894,0.10839514,2579.4,2578.2,6.96717755]
[1646770771143,0.10839514,2579.4,2578.3,0.3]
[1646770771445,0.10839514,2579.4,2578.3,1.82722148]
[1646770771646,0.10839514,2579.4,2578.2,1.93944]
[1646770771843,0.10839514,2579.4,2578.3,0.0187494]
[1646770772646,0.49619514,2579.4,2578.3,0.0187494]
[1646770772848,0.10839514,2579.4,2578.3,0.0187494]
[1646770773048,2.8985,2579.6,2578.3,0.02249931]
[1646770773250,2.8985,2579.6,2578.3,0.31874928]
[1646770773747,2.8985,2579.6,2578.7,1.2696574]
[1646770773947,2.343,2579.7,2578.8,1.93929]
[1646770774151,2.2684,2579.9,2578.9,3.5]
[1646770774347,3.62354723,2580.1,2579.0,0.468]
[1646770774348,3.62729453,2580.1,2579.0,0.468]
[1646770774546,3.62729453,2580.1,2579.3,0.96952]
[1646770774547,0.0037473,2580.1,2579.3,0.96952]
[1646770774988,0.0037473,2580.1,2579.4,0.3]
[1646770775188,0.8835677,2580.1,2579.4,0.3]
[1646770775389,0.8835677,2580.1,2579.2,0.3]
[1646770775589,0.8835677,2580.1,2579.0,1.0]
[1646770775590,1.27126643,2580.1,2579.0,1.0]
[1646770775791,1.27126643,2580.1,2579.0,0.3]
[1646770775990,1.27126643,2580.1,2578.9,0.01459097]
[1646770776394,0.96995,2579.7,2578.9,0.01459097]
[1646770776595,0.96993,2579.6,2578.9,0.01459097]
[1646770776799,1.26993,2579.6,2578.9,0.02789278]
[1646770776993,1.26993,2579.6,2578.9,0.01330181]
[1646770777994,1.26993,2579.6,2578.7,0.01330202]
[1646770778932,1.26993,2579.6,2579.2,0.03385698]
[1646770779133,1.26993,2579.6,2579.2,0.03047129]
[1646770779337,0.96999,2579.5,2579.2,0.03047129]
[1646770779635,12.76999,2579.5,2579.2,0.03047129]
[1646770779835,13.76999,2579.5,2579.2,0.03047129]
[1646770780236,1.96999,2579.5,2579.2,0.03047129]
[1646770780633,0.75213855,2579.3,2579.2,0.03047129]
[1646770780835,2.69243855,2579.3,2579.2,0.03047129]
[1646770781035,0.75213855,2579.3,2579.2,0.03047129]
[1646770781240,1.27014,2579.4,2579.2,0.03047129]
[1646770781445,0.3,2579.4,2579.2,0.03047129]
[1646770781640,4.89093,2579.6,2579.2,0.03047129]
[1646770781641,3.89093,2579.6,2579.2,0.03047129]
[1646770782040,2.921,2579.6,2579.2,0.03047129]
[1646770782286,3.22540292,2579.7,2579.2,0.03047129]
[1646770782486,0.85500292,2579.7,2579.2,0.03047129]
[1646770782886,0.96976,2579.8,2579.2,0.03047129]
[1646770783790,0.10839514,2580.0,2579.2,0.03047129]
[1646770784191,0.10839514,2580.0,2578.9,0.01537027]
[1646770784390,0.10839514,2580.0,2579.2,0.75336761]
[1646770784788,0.10839514,2580.0,2579.3,0.96956]
[1646770785189,0.10839514,2580.0,2579.0,2.93907]
[1646770785387,0.10839514,2580.0,2578.9,0.01537013]
[1646770785388,0.10839514,2580.0,2579.1,0.3]
[1646770785588,0.10839514,2580.0,2578.9,0.31537013]
[1646770785790,0.10839514,2580.0,2579.0,0.96961]
[1646770786238,0.10839514,2580.0,2579.1,0.3]
[1646770786440,0.10839514,2580.0,2579.2,0.89695466]
[1646770788341,0.10839514,2580.0,2579.2,13.08475466]
[1646770788644,0.00695299,2580.1,2579.4,12.1878]
[1646770788841,0.00331734,2580.1,2579.4,13.4878]
[1646770789044,0.00331734,2580.1,2579.6,0.3878]
[1646770789787,0.00331734,2580.1,2579.4,1.3]
[1646770789788,0.00331734,2580.1,2579.4,0.3]
[1646770789987,0.00331734,2580.1,2578.8,3.877719]
[1646770789988,0.00333267,2580.1,2579.1,0.468]
[1646770790186,0.00333267,2580.1,2579.3,0.3]
[1646770790386,0.00333267,2580.1,2579.1,0.3]
[1646770790890,0.00333267,2580.1,2579.1,1.13745141]
[1646770791090,0.00666524,2580.1,2579.1,1.13745141]
[1646770791293,0.97293257,2580.1,2579.1,0.3]
[1646770792094,0.97293257,2580.1,2578.9,0.01333654]
[1646770792396,0.97296621,2580.1,2579.0,0.74765521]
[1646770792593,1.94266621,2580.1,2579.0,0.74765521]
[1646770792792,1.94266621,2580.1,2579.0,1.04765521]
[1646770792994,1.94266621,2580.1,2579.1,0.3878]
[1646770793543,1.94605322,2580.1,2579.1,0.3878]
[1646770793733,1.94268701,2580.1,2579.1,0.3878]
[1646770793935,0.97298701,2580.1,2579.1,0.3878]
[1646770794734,0.97637406,2580.1,2579.1,0.3878]
[1646770794937,0.97298705,2580.1,2579.1,0.3878]
[1646770795935,0.97636978,2580.1,2579.1,0.3878]
[1646770796139,0.97298273,2580.1,2579.1,0.3878]
[1646770796338,0.97298273,2580.1,2579.3,1.35731]
[1646770796339,0.00338273,2580.1,2579.3,1.35731]
[1646770796741,0.00338273,2580.1,2579.4,0.3]
[1646770797387,0.00337894,2580.1,2579.4,0.3]
[1646770798189,0.00337894,2580.1,2579.4,1.2693855]
[1646770798391,0.00337894,2580.1,2579.4,0.3]
[1646770798392,0.00675791,2580.1,2579.4,0.3]
[1646770798590,0.00337897,2580.1,2579.4,0.3]
[1646770799590,0.00675851,2580.1,2579.4,0.3]
[1646770799790,0.00337954,2580.1,2579.4,0.3]
[1646770800393,0.00337954,2580.1,2579.5,0.96936]
[1646770800892,0.00338009,2580.1,2579.6,0.3]
[1646770801346,0.00338009,2580.1,2579.7,12.1878]
[1646770801542,0.00338009,2580.1,2579.8,13.04010752]
[1646770801744,0.07929322,2580.5,2580.2,0.90462722]
[1646770801945,0.07929322,2580.4,2580.2,0.90462722]
[1646770802143,1.67193,2581.1,2580.2,1.20462722]
[1646770802344,0.07928731,2581.0,2580.1,0.00330367]
[1646770802544,1.67222,2580.9,2580.1,0.00330367]
[1646770802751,2.01841731,2581.0,2580.1,0.00330367]
[1646770802752,1.93918,2580.7,2580.1,0.00330367]
[1646770802944,3.57928731,2580.6,2580.1,0.00330367]
[1646770803144,0.07928731,2580.5,2580.1,0.00330367]
[1646770803543,0.89835267,2580.5,2580.1,0.00330367]
[1646770803745,1.04883731,2580.4,2580.1,0.00330367]
[1646770803945,0.07928731,2580.3,2580.1,0.00330367]
[1646770804644,0.07928731,2580.2,2580.1,0.00330367]
[1646770804886,0.0016228,2580.4,2580.1,0.00330367]
[1646770805086,0.0016228,2580.4,2580.1,0.89051803]
[1646770805287,0.0016228,2580.4,2580.1,1.19051803]
[1646770805683,0.0016228,2580.3,2580.1,1.19051803]
[1646770806790,0.0052937,2580.3,2580.1,1.19051803]
[1646770806991,0.07928868,2580.2,2580.1,1.19051803]
[1646770807292,0.0036709,2580.3,2580.1,1.19051803]
[1646770807490,0.0036709,2580.3,2580.1,1.57831803]
[1646770807691,0.0036709,2580.3,2580.1,0.30330367]
[1646770807994,0.00701759,2580.3,2580.1,0.30330367]
[1646770808191,0.07928868,2580.2,2580.1,0.30330367]
[1646770808834,0.00334669,2580.3,2580.1,0.00330367]
[1646770808835,0.03293295,2580.3,2580.1,0.00330367]
[1646770809037,0.07928868,2580.2,2580.1,0.00330367]
[1646770810438,1.04892868,2580.2,2580.1,0.00330367]
[1646770810838,3.57928868,2580.2,2580.1,0.00330367]
[1646770811142,4.28193868,2580.2,2580.1,0.00330367]
[1646770811341,3.57928868,2580.2,2580.1,0.00330367]
[1646770812141,1.04890868,2580.2,2580.1,0.00330367]
[1646770812389,0.07928868,2580.2,2580.1,0.00330367]
[1646770812586,0.70928183,2580.2,2580.1,0.00330367]
[1646770812787,0.07928868,2580.2,2580.1,0.00330367]
[1646770813389,3.57928868,2580.2,2580.1,0.00330367]
[1646770813994,3.5,2580.2,2580.1,0.00330367]
[1646770814992,0.30338354,2580.3,2580.1,0.00330367]
[1646770815193,0.00676708,2580.3,2580.1,0.00330367]
[1646770815395,0.97299354,2580.3,2580.1,0.00330367]
[1646770815592,3.5,2580.2,2580.1,0.00330367]
[1646770816451,4.44725508,2580.2,2580.1,0.00330367]
[1646770816650,4.8,2580.2,2580.1,0.00330367]
[1646770816851,4.8,2580.2,2579.2,0.01352371]
[1646770816852,5.5,2580.1,2579.2,0.01352371]
[1646770817051,1.91651202,2579.9,2579.2,0.01352371]
[1646770817252,0.9700651,2579.7,2579.2,0.01352371]
[1646770817452,3.5,2579.6,2579.2,0.01352371]
[1646770817754,0.77265085,2579.5,2579.2,0.02704742]
[1646770817952,0.77265085,2579.5,2579.2,0.01352371]
[1646770818153,0.96996,2579.3,2579.2,0.01352371]
[1646770818454,0.3,2579.6,2579.2,0.01352371]
[1646770818651,0.94642202,2579.7,2579.2,0.01352371]
[1646770819151,0.94642202,2579.7,2578.8,0.01352377]
[1646770819152,8.11462202,2579.8,2578.8,0.98327377]
[1646770819352,6.4804,2579.8,2578.9,1.56383143]
[1646770819550,0.84781562,2579.6,2578.9,1.56383143]
[1646770819785,3.5,2579.5,2578.9,1.56383143]
[1646770819988,3.5,2579.5,2578.8,0.02704984]
[1646770820186,3.5,2579.5,2578.8,0.01352607]
[1646770820386,0.96999,2579.4,2578.8,0.01352607]
[1646770820587,3.5,2579.3,2578.8,0.01352607]
[1646770820786,0.71442328,2579.2,2578.8,0.01352607]
[1646770821093,3.5,2579.1,2578.8,0.01352607]
[1646770821290,0.97008,2579.1,2578.8,0.01352607]
[1646770821492,0.97008,2579.1,2578.7,0.00338145]
[1646770821493,4.47008,2579.1,2578.7,0.00338145]
[1646770822093,0.76206957,2578.8,2578.7,0.00338145]
[1646770822292,5.23222957,2578.8,2578.7,0.00338145]
[1646770822493,5.23222957,2578.8,2578.7,0.00676277]
[1646770822494,5.53222957,2578.8,2578.7,0.00676277]
[1646770822694,5.53222957,2578.8,2578.4,0.01352716]
[1646770822695,5.5,2578.7,2578.4,0.01352716]
[1646770822894,3.57933711,2578.6,2578.4,0.01352716]
[1646770823096,0.07933711,2578.5,2578.4,0.01352716]
[1646770823547,5.52030711,2578.5,2578.4,0.01352716]
[1646770823742,6.52030711,2578.5,2577.8,0.0013816]
[1646770823941,6.52030711,2578.5,2577.7,1.55577946]
[1646770823942,0.9705,2578.2,2577.7,1.55577946]
[1646770824138,0.9705,2578.2,2577.8,1.55577946]
[1646770824139,0.07933711,2578.1,2577.8,1.55577946]
[1646770824338,0.07933711,2578.1,2577.1,0.0013816]
[1646770824538,3.57933711,2578.1,2577.1,1.55561983]
[1646770824739,4.22736809,2578.1,2577.1,1.55561983]
[1646770824940,1.04990732,2578.0,2577.1,1.55561983]
[1646770825140,2.91199,2577.8,2577.1,1.55561983]
[1646770825339,2.91199,2577.8,2577.1,1.55423823]
[1646770825340,3.5,2577.7,2577.1,1.55423823]
[1646770825641,3.5,2577.7,2577.2,1.55423823]
[1646770825838,3.5,2577.7,2576.5,8.08402126]
[1646770825839,0.7325912,2577.5,2576.7,0.0013816]
[1646770826039,0.97073,2577.3,2576.6,1.56319509]
[1646770826442,0.3,2577.6,2576.6,1.56319509]
[1646770826847,6.80002,2577.7,2576.6,1.56319509]
[1646770827325,6.41222,2577.7,2577.0,0.00394488]
[1646770827621,0.97065,2577.5,2577.0,0.00394488]
[1646770828221,0.97065,2577.5,2577.0,1.56713997]
[1646770828421,0.97065,2577.5,2577.0,0.00394488]
[1646770828624,0.7810092,2577.3,2577.1,0.00363492]
[1646770828826,4.47079,2577.2,2577.1,0.00363492]
[1646770829022,0.97079,2577.2,2577.1,0.00363492]
[1646770829223,4.47079,2577.2,2577.1,0.00363492]
[1646770829922,4.47079,2577.2,2576.9,0.0347781]
[1646770830125,1.94172,2577.2,2576.9,0.0347781]
[1646770830324,1.27079,2577.2,2576.9,0.0347781]
[1646770830523,2.0810092,2577.3,2576.9,0.0347781]
[1646770830524,0.3,2577.3,2576.9,0.0347781]
[1646770830722,0.97069,2577.5,2576.9,0.0347781]
[1646770830925,2.53640594,2577.8,2576.9,0.0347781]
[1646770831745,0.72446362,2577.7,2576.9,0.0347781]
[1646770832146,0.72446362,2577.7,2577.2,0.00363067]
[1646770832346,1.69503362,2577.7,2577.2,0.00363067]
[1646770833349,6.16575362,2577.7,2577.3,0.0038338]
[1646770834148,2.66575362,2577.7,2577.3,0.0038338]
[1646770834550,2.66575362,2577.7,2577.4,0.00383376]
[1646770834551,1.94129,2577.7,2577.4,0.00383376]
[1646770834786,0.97057,2577.7,2577.4,0.00383376]
[1646770835688,0.76857806,2577.6,2577.4,0.00766748]
[1646770835989,0.76857806,2577.6,2577.4,0.00383372]
[1646770836794,0.97057,2577.7,2577.4,0.00383372]
[1646770836997,3.9827,2577.9,2577.4,0.00383372]
[1646770836998,3.9827,2577.9,2577.4,0.00713482]
[1646770837196,3.9827,2577.9,2577.4,0.0033011]
[1646770838195,3.9827,2577.9,2577.5,0.003301]
[1646770838660,3.5,2577.8,2577.5,0.003301]
[1646770838860,3.9827,2577.9,2577.5,0.003301]
[1646770839057,3.9827,2577.9,2577.5,0.04916061]
[1646770839262,0.85601297,2577.7,2577.5,0.04916061]
[1646770839459,0.85601297,2577.7,2577.6,0.00330097]
[1646770840658,0.85601297,2577.7,2577.5,0.04923989]
[1646770840859,1.82667297,2577.7,2577.5,0.04923989]
[1646770841263,1.82667297,2577.7,2577.1,0.01352316]
[1646770841264,9.0,2577.6,2577.1,0.01352316]
[1646770841468,11.91244,2577.6,2577.1,0.01352316]
[1646770841668,12.91244,2577.6,2577.1,0.01352316]
[1646770841868,12.91244,2577.6,2577.5,0.00338032]
[1646770842068,7.41244,2577.6,2577.5,0.00338032]
[1646770842288,4.8,2577.6,2577.5,0.00338032]
[1646770842588,1.3,2577.6,2577.5,0.00338032]
[1646770842790,0.3,2577.6,2577.5,0.00338032]
[1646770842989,0.3,2577.6,2576.5,0.0013816]
[1646770843188,3.8,2577.6,2576.4,0.74776583]
[1646770843392,1.15601297,2577.7,2576.9,0.97057]
[1646770843588,0.3,2577.8,2576.9,0.97057]
[1646770843790,3.9827,2577.9,2576.9,0.97057]
[1646770844289,3.9827,2577.9,2576.9,0.97393983]
[1646770844491,3.9827,2577.9,2577.6,0.04577443]
[1646770844990,3.9827,2577.9,2577.0,0.0013816]
[1646770844991,5.5,2577.6,2577.0,0.0013816]
[1646770845189,3.5,2577.5,2576.9,0.00336983]
[1646770845390,3.5,2577.5,2577.4,0.00336965]
[1646770845796,3.5,2577.5,2575.7,1.7646926]
[1646770845797,5.5,2577.4,2576.5,0.0013816]
[1646770846049,5.5,2577.4,2576.2,0.0313816]
[1646770846050,0.86364529,2576.7,2576.2,0.0313816]
[1646770846249,0.86364529,2576.7,2576.2,0.03]
[1646770846250,3.5,2576.6,2576.2,0.03]
[1646770846448,3.8,2576.6,2576.2,0.03]
[1646770846848,5.5,2576.3,2575.8,0.01063012]
[1646770847051,0.8327813,2576.0,2575.8,0.01063012]
[1646770847249,4.3327813,2576.0,2575.8,0.01063012]
[1646770847450,0.8327813,2576.0,2575.8,0.01063012]
[1646770847750,1.1327813,2576.0,2575.8,0.01063012]
[1646770847950,4.6327813,2576.0,2575.8,0.01063012]
[1646770848347,1.94296,2575.9,2575.7,0.03590093]
[1646770848549,5.8878,2575.5,2574.4,0.01738816]
[1646770848752,5.8878,2575.5,2573.9,0.4438031]
[1646770848753,0.01228702,2574.5,2573.9,0.0569031]
[1646770849048,0.3,2575.0,2574.5,0.04661072]
[1646770849049,1.0,2575.0,2574.5,0.04661072]
[1646770849247,3.5,2575.0,2574.5,0.04661072]
[1646770849446,0.89749544,2574.8,2574.5,0.04661072]
[1646770849649,0.97195,2574.6,2574.5,0.04661072]
[1646770850091,3.5,2574.5,2574.4,0.34409504]
[1646770850293,5.0,2574.4,2573.9,0.0569031]
[1646770850492,6.94391,2574.4,2573.9,0.0069031]
[1646770851296,0.75628401,2574.3,2573.9,0.0069031]
[1646770851495,1.72824401,2574.3,2573.9,0.0069031]
[1646770852094,0.97196,2574.3,2573.9,0.0069031]
[1646770852496,0.97196,2574.3,2574.0,0.00392343]
[1646770853839,0.97196,2574.3,2574.0,0.00392339]
[1646770854541,0.97196,2574.3,2573.8,0.06615107]
[1646770855140,0.97196,2574.3,2574.0,0.00392339]
[1646770855840,4.77196,2574.3,2574.0,0.00392339]
[1646770856243,5.77196,2574.3,2573.8,0.06615107]
[1646770856543,0.89906879,2573.9,2573.8,0.06615107]
[1646770856744,3.03996,2574.3,2573.8,0.06615107]
[1646770856945,4.0120676,2574.3,2573.8,0.06615107]
[1646770857147,3.0120676,2574.3,2573.8,0.06615107]
[1646770857396,4.0120676,2574.3,2573.8,0.06615107]
[1646770857598,3.0120676,2574.3,2573.8,0.06615107]
[1646770857794,0.83781235,2574.1,2573.8,0.06615107]
[1646770857997,0.97206,2574.0,2573.8,0.06615107]
[1646770858495,0.97206,2574.0,2573.9,0.00166579]
[1646770859900,0.97206,2574.0,2573.8,0.06975161]
[1646770861043,0.97206,2574.0,2573.8,0.06996256]
[1646770861244,0.97206,2574.0,2573.9,0.00646767]
[1646770861446,5.0,2573.9,2573.7,0.03]
[1646770861646,0.03649917,2574.3,2573.6,0.04143914]
[1646770861848,1.00843917,2574.3,2573.6,0.04143914]
[1646770862147,1.58805415,2574.3,2573.6,0.04143914]
[1646770862348,1.58805415,2574.3,2573.8,0.00381145]
[1646770862549,5.5,2574.2,2573.6,0.009073]
[1646770862755,0.3,2573.9,2573.4,0.0463126]
[1646770863050,0.01274159,2573.5,2573.4,0.0463126]
[1646770863249,0.468,2573.8,2573.5,0.0048936]
[1646770863250,0.468,2573.7,2573.5,0.0048936]
[1646770863647,4.5,2573.6,2573.1,0.0849629]
[1646770863848,5.5,2573.5,2573.1,0.0849629]
[1646770864049,5.5,2573.3,2573.2,0.00862112]
[1646770864350,0.97232,2573.4,2573.2,0.00862112]
[1646770864351,1.27232,2573.4,2573.2,0.00862112]
[1646770864548,3.8,2573.3,2573.1,0.04358402]
[1646770864800,0.3,2573.3,2573.1,0.06082626]
[1646770865190,1.2724,2573.4,2573.1,0.06082626]
[1646770865399,0.9724,2573.2,2573.1,0.06082626]
[1646770865600,5.5,2573.1,2572.9,0.02782252]
[1646770865796,3.5,2573.0,2572.9,0.03830892]
[1646770865997,1.5725644,2573.1,2572.9,0.03830892]
[1646770866195,0.3,2573.0,2572.9,0.03830892]
[1646770866395,1.068,2573.1,2572.9,0.03830892]
[1646770866596,0.768,2573.1,2572.9,0.03830892]
[1646770866898,1.6451711,2573.2,2572.9,0.03830892]
[1646770867098,1.8131711,2573.2,2572.9,0.03830892]
[1646770867298,0.8131711,2573.2,2572.9,0.03830892]
[1646770867598,0.8131711,2573.2,2572.7,0.10458687]
[1646770868002,3.5,2573.1,2572.7,0.10458687]
[1646770868198,3.5,2573.1,2572.9,0.00381935]
[1646770868399,4.5,2573.1,2572.9,0.00381935]
[1646770868644,3.5,2573.1,2572.9,0.00381935]
[1646770868841,4.968,2573.1,2572.9,0.00381935]
[1646770869044,0.468,2573.1,2572.9,0.00381935]
[1646770869244,0.02920843,2573.0,2572.9,0.00381935]
[1646770869447,0.02920843,2573.0,2572.7,0.10458687]
[1646770869951,1.00166843,2573.0,2572.7,0.10458687]
[1646770870150,1.30166843,2573.0,2572.7,0.10458687]
[1646770870450,1.00166843,2573.0,2572.7,0.10458687]
[1646770871452,0.02920843,2573.0,2572.7,0.10458687]
[1646770871855,0.02920843,2573.0,2572.7,0.10851384]
[1646770873094,0.02920843,2573.0,2572.7,0.11244081]
[1646770873298,0.02920843,2573.0,2572.7,0.10851384]
[1646770874099,4.47233,2573.3,2572.7,0.10851384]
[1646770874299,5.47233,2573.3,2572.7,0.10851384]
[1646770874500,5.77233,2573.3,2572.7,0.10851384]
[1646770875501,2.27233,2573.3,2572.8,0.00392702]
[1646770875699,1.27233,2573.3,2572.8,0.00392702]
[1646770875903,0.97233,2573.3,2572.8,0.00392702]
[1646770876146,0.02984366,2573.4,2572.8,0.04139946]
[1646770876543,0.02984366,2573.4,2572.8,0.04467684]
[1646770876745,0.02984366,2573.4,2572.8,0.04074982]
[1646770877046,0.02984366,2573.4,2572.8,0.79209702]
[1646770877247,1.30215366,2573.4,2572.8,0.04074982]
[1646770877446,1.00215366,2573.4,2572.8,0.04074982]
[1646770877848,0.02984366,2573.4,2572.8,0.04402724]
[1646770878049,0.02984366,2573.4,2572.8,0.04074986]
[1646770878847,0.02984366,2573.4,2573.0,0.79112842]
[1646770879049,0.02984366,2573.4,2572.8,0.04402728]
[1646770879248,0.02984366,2573.4,2573.0,0.0209728]
[1646770880298,0.02984366,2573.4,2573.0,0.88930111]
[1646770883105,0.02984366,2573.4,2573.0,0.0209728]
[1646770883304,3.99784366,2573.4,2573.0,0.0209728]
[1646770884143,0.79161173,2573.2,2573.0,0.0209728]
[1646770884346,9.97245,2573.1,2572.6,0.05845347]
[1646770884546,5.5,2573.0,2572.5,0.01312043]